bitfinex/quotes_ETHUSD_20240618
["timestamp","ask_amount","ask_price","bid_price","bid_amount"]
[1718745429901,2.87383,3479.7,3479.1,2.87428]
[1718745430425,2.8739,3479.6,3478.9,2.87446]
[1718745430706,2.87425,3479.2,3478.5,2.87476]
[1718745430905,2.27422591,3479.2,3478.6,2.87467]
[1718745431208,2.87414,3479.3,3478.4,2.87488]
[1718745431428,2.87464,3478.7,3478.2,2.87497]
[1718745431647,2.87447,3478.9,3478.0,2.87519]
[1718745431774,2.87498,3478.3,3477.6,2.87554]
[1718745431971,2.87471,3478.7,3477.9,2.87526]
[1718745432201,0.715989,3479.2,3477.7,2.87538]
[1718745432405,0.715989,3479.2,3479.0,2.87431]
[1718745432623,2.87388,3479.7,3479.0,2.87431]
[1718745432973,2.87388,3479.7,3479.1,2.8743]
[1718745433371,5.74772,3479.7,3479.0,2.87438]
[1718745433573,2.87383,3479.7,3479.1,2.8743]
[1718745433814,2.87383,3479.7,3478.7,2.87461]
[1718745433815,2.87381,3479.7,3479.2,2.87421]
[1718745434248,0.69380172,3480.0,3479.5,2.87396]
[1718745434430,2.87339,3480.2,3479.7,2.87379]
[1718745434599,2.87331,3480.3,3479.5,2.8739]
[1718745434954,2.8734,3480.2,3479.7,2.8738]
[1718745435096,0.05745716,3480.2,3479.3,2.87407]
[1718745435297,2.87401,3479.5,3479.0,2.87438]
[1718745435534,2.87373,3479.8,3479.2,2.8742]
[1718745435797,2.87399,3479.5,3478.5,2.87472]
[1718745436004,2.87398,3479.5,3478.6,2.87464]
[1718745436303,1.11388662,3480.1,3478.9,2.87443]
[1718745436508,10.04764,3480.4,3479.8,2.87371]
[1718745436719,2.87324,3480.4,3479.9,2.87362]
[1718745437342,2.87292,3480.8,3479.5,2.87389]
[1718745437343,2.87289,3480.9,3479.8,2.87372]
[1718745437502,0.05745716,3480.9,3479.8,2.87372]
[1718745437705,2.87313,3480.6,3480.0,2.87355]
[1718745437983,0.574609,3480.5,3480.0,2.87349]
[1718745438804,3.447769,3480.5,3479.9,2.87363]
[1718745439019,3.447769,3480.5,3479.5,2.87392]
[1718745439020,2.8734,3480.2,3479.5,2.87392]
[1718745439341,0.2889,3480.9,3479.7,2.8738]
[1718745439508,2.87315,3480.5,3479.9,2.87364]
[1718745439701,0.58035872,3480.5,3479.8,2.87371]
[1718745439905,0.05745716,3480.5,3480.0,2.87352]
[1718745440403,2.87321,3480.5,3480.0,2.87353]
[1718745440602,2.87307,3480.6,3479.6,2.87383]
[1718745440860,3.0,3481.4,3479.6,2.87383]
[1718745440861,0.45052376,3482.3,3480.2,2.87339]
[1718745441027,7.4866,3482.9,3480.7,2.87292]
[1718745441217,0.05745716,3482.8,3481.5,2.87232]
[1718745441416,2.87151,3482.5,3481.5,2.87232]
[1718745441620,2.87181,3482.2,3481.5,2.87232]
[1718745441852,2.87181,3482.2,3481.6,2.87222]
[1718745442065,2.87184,3482.1,3481.5,2.87232]
[1718745442257,7.4866,3482.9,3482.4,2.87154]
[1718745442431,0.05745716,3482.8,3481.7,2.87215]
[1718745442764,7.4866,3482.9,3482.1,2.87183]
[1718745443068,0.005,3483.0,3482.6,2.87141]
[1718745443272,0.005,3483.0,3481.4,2.87235]
[1718745443273,0.005,3483.0,3482.8,2.87121]
[1718745443435,0.005,3483.0,3482.6,2.87134]
[1718745443832,0.005,3483.0,3481.5,2.87227]
[1718745444032,0.005,3483.0,3480.7,2.87292]
[1718745444033,2.87134,3482.7,3482.2,2.87173]
[1718745444253,2.87125,3482.8,3482.2,2.87172]
[1718745444452,2.87125,3482.8,3481.2,2.87255]
[1718745444453,0.34508216,3482.7,3482.1,2.87176]
[1718745444670,0.05745716,3482.9,3481.6,2.87221]
[1718745444841,2.87141,3482.7,3481.6,2.87221]
[1718745445167,3.16452872,3482.9,3482.0,2.87187]
[1718745445341,3.16452872,3482.9,3482.2,2.8717]
[1718745445342,2.92871716,3482.8,3482.2,2.8717]
[1718745445544,0.29334872,3482.9,3482.6,2.87139]
[1718745445729,0.005,3483.0,3482.6,2.87139]
[1718745445935,0.005,3483.0,3482.9,5.74234]
[1718745446182,0.005,3483.0,3482.9,8.61351]
[1718745446333,0.005,3483.0,3482.9,8.60445098]
[1718745446531,0.005,3483.0,3482.9,5.73328098]
[1718745446731,0.005,3483.0,3482.9,2.86211098]
[1718745447384,0.005,3483.0,3482.9,6.30660908]
[1718745447550,0.005,3483.0,3482.9,5.73328098]
[1718745447733,0.005,3483.0,3482.9,2.86211098]
[1718745448136,0.005,3483.0,3482.9,2.87117]
[1718745448357,0.005,3483.0,3482.9,8.61351]
[1718745448883,0.005,3483.0,3482.9,5.74234]
[1718745449473,0.005,3483.0,3482.9,2.87117]
[1718745449977,0.005,3483.0,3482.9,9.16351]
[1718745450340,0.005,3483.0,3482.9,8.61351]
[1718745450892,0.005,3483.0,3482.9,5.74234]
[1718745451777,0.00095887,3483.4,3482.8,2.87117]
[1718745452086,0.00095887,3483.4,3482.5,2.87149]
[1718745452087,0.28716889,3483.3,3482.5,2.87149]
[1718745452249,2.92840716,3483.2,3482.5,2.87149]
[1718745453243,2.87095,3483.2,3482.5,2.87149]
[1718745453559,2.87136,3482.7,3481.9,2.87198]
[1718745453741,2.87125,3482.8,3482.2,2.87173]
[1718745454484,0.017,3484.4,3483.2,8.0038]
[1718745454651,0.017,3484.4,3484.3,8.61003]
[1718745454852,0.017,3484.4,3484.3,5.74002]
[1718745455053,0.017,3484.4,3484.3,8.61003]
[1718745455766,0.017,3484.4,3484.3,11.48004]
[1718745456061,0.017,3484.4,3484.3,12.84506]
[1718745456272,0.017,3484.4,3484.3,15.71507]
[1718745456750,0.017,3484.4,3484.3,11.41003]
[1718745457383,0.017,3484.4,3484.3,14.28004]
[1718745458085,0.017,3484.4,3484.3,11.41003]
[1718745458294,0.017,3484.4,3484.3,8.41003]
[1718745458954,0.017,3484.4,3483.5,2.87064]
[1718745458955,0.017,3484.4,3484.2,2.87005]
[1718745459154,0.017,3484.4,3484.3,2.87001]
[1718745459782,0.017,3484.4,3484.2,2.87009]
[1718745459972,0.017,3484.4,3483.8,2.87041]
[1718745460179,2.87003,3484.3,3483.7,2.87045]
[1718745460554,2.87003,3484.3,3483.0,0.62698]
[1718745460555,2.87026,3484.0,3483.1,2.87092]
[1718745460871,2.87052,3483.7,3483.1,2.871]
[1718745461069,2.87052,3483.7,3483.2,2.87091]
[1718745461289,0.574086,3483.6,3482.6,2.87137]
[1718745461589,0.017,3484.4,3482.1,3.446215]
[1718745461590,2.87052,3483.7,3482.7,2.87132]
[1718745461793,2.87067,3483.5,3482.7,2.87129]
[1718745462011,10.36713716,3483.4,3482.2,2.87174]
[1718745462157,2.87091,3483.3,3482.1,2.87179]
[1718745462357,2.87101,3483.1,3482.1,2.87179]
[1718745462597,2.87151,3482.5,3481.7,2.87209]
[1718745462908,1.030968,3483.3,3482.1,2.87182]
[1718745463098,2.87124,3482.9,3482.1,2.87182]
[1718745463456,2.87117,3482.9,3482.3,2.87165]
[1718745463696,3.732492,3482.9,3482.3,2.87165]
[1718745464010,3.732492,3482.9,3482.1,2.87175]
[1718745464342,2.87134,3482.7,3482.1,2.87175]
[1718745464605,7.4389,3485.1,3484.3,5.74002]
[1718745464929,0.08918389,3485.2,3484.3,6.314022]
[1718745465207,0.08918389,3485.2,3484.3,8.61003]
[1718745466078,2.86952,3484.9,3484.3,2.87001]
[1718745467093,2.86952,3484.9,3484.1,2.87014]
[1718745467293,2.86952,3484.9,3484.1,2.87013]
[1718745467294,2.86955,3484.9,3484.1,2.87013]
[1718745467605,0.08918389,3485.2,3483.9,2.87033]
[1718745467918,2.86961,3484.8,3484.0,2.87024]
[1718745468067,2.86977,3484.6,3484.0,2.87024]
[1718745468274,2.86968,3484.7,3484.1,2.87016]
[1718745468507,2.86968,3484.7,3484.2,2.87009]
[1718745469009,2.86968,3484.7,3484.1,2.87017]
[1718745469197,2.86978,3484.6,3484.1,2.87017]
[1718745469400,2.86978,3484.6,3484.0,2.87025]
[1718745469602,2.86978,3484.6,3484.1,2.87013]
[1718745469800,2.86978,3484.6,3483.9,5.7406]
[1718745469975,2.86978,3484.6,3483.9,2.87026]
[1718745470175,2.86978,3484.6,3484.1,2.87016]
[1718745470378,2.88694,3484.4,3483.8,2.87042]
[1718745470591,0.017,3484.4,3484.1,2.87016]
[1718745470828,0.00163048,3484.4,3484.1,2.87016]
[1718745471115,0.00163048,3484.4,3484.0,2.87025]
[1718745471270,0.00163048,3484.4,3484.1,2.87017]
[1718745471770,0.00015639,3484.4,3484.2,0.05739446]
[1718745472323,0.00015639,3484.4,3484.1,2.87016]
[1718745472616,0.00015639,3484.4,3482.6,6.2698]
[1718745472799,0.00015639,3484.4,3483.6,2.87056]
[1718745473028,0.00015639,3484.4,3483.7,0.01744508]
[1718745473313,0.00015639,3484.4,3483.6,2.87058]
[1718745473314,2.87003,3484.3,3483.6,2.87058]
[1718745473526,0.00015639,3484.4,3483.9,2.87031]
[1718745474379,2.87008639,3484.4,3484.0,0.02305881]
[1718745474776,0.00015639,3484.4,3484.0,0.02305881]
[1718745475430,5.74076,3483.9,3482.0,2.91]
[1718745475589,2.87026,3484.1,3481.3,0.28971951]
[1718745475590,3.07178157,3483.8,3482.5,2.87142]
[1718745475783,2.87095,3483.2,3482.3,2.87162]
[1718745476013,0.37895443,3483.7,3482.1,2.87182]
[1718745476014,2.87109,3483.0,3482.1,2.87182]
[1718745476192,2.87109,3483.0,3481.9,2.87197]
[1718745476407,0.07177899,3482.9,3481.3,1.734]
[1718745476595,2.87058,3483.7,3481.3,2.1362693]
[1718745476596,2.87138,3482.7,3481.3,2.1362693]
[1718745476793,2.87173,3482.3,3481.4,2.8724]
[1718745476988,2.87149,3482.6,3481.7,2.87214]
[1718745477314,2.87149,3482.6,3481.5,2.87232]
[1718745477315,2.8717,3482.3,3481.5,0.28724]
[1718745477536,2.87191,3482.0,3481.5,0.28724]
[1718745477679,2.87168,3482.3,3481.7,2.87214]
[1718745478069,2.87168,3482.3,3481.7,3.188078]
[1718745478210,2.87075,3483.4,3482.7,2.87126]
[1718745478537,2.87109,3483.0,3482.3,2.87162]
[1718745478677,2.87118,3482.9,3481.8,2.87204]
[1718745479028,2.87118,3482.9,3480.8,2.85924953]
[1718745479029,7.1028,3482.4,3481.1,2.87258]
[1718745479236,2.87206,3481.9,3481.2,2.8725]
[1718745479380,2.87215,3481.8,3481.0,4.07291495]
[1718745479582,2.87194,3482.0,3481.0,2.87272]
[1718745479820,2.87199,3481.9,3481.3,2.87248]
[1718745480338,2.87183,3482.1,3481.4,2.87238]
[1718745480488,2.87232,3481.5,3480.9,2.87279]
[1718745480692,2.87232,3481.5,3480.9,0.28592495]
[1718745480693,2.87251,3481.3,3480.9,0.28592495]
[1718745480885,2.87251,3481.3,3480.7,2.87298]
[1718745481401,2.87249,3481.3,3480.7,2.87298]
[1718745481720,2.8724,3481.4,3480.7,2.87298]
[1718745482079,2.8724,3481.4,3480.5,2.87314]
[1718745482080,2.87216,3481.7,3480.5,2.87314]
[1718745482422,2.87202,3481.9,3481.3,2.87248]
[1718745482617,2.87202,3481.9,3480.8,2.87285]
[1718745482915,2.87224,3481.6,3480.9,2.87282]
[1718745483118,2.87232,3481.5,3481.0,2.87271]
[1718745483341,2.87184,3482.1,3480.9,0.574586]
[1718745483500,2.87215,3481.8,3481.1,2.87262]
[1718745483700,2.87218,3481.7,3481.1,2.87262]
[1718745483901,2.87206,3481.9,3480.6,2.87305]
[1718745484113,2.8726,3481.2,3480.6,2.87305]
[1718745484317,2.8726,3481.2,3480.4,2.87321]
[1718745484480,2.87283,3480.9,3479.8,2.87372]
[1718745484686,2.87283,3480.9,3479.5,6.2698]
[1718745484687,2.87307,3480.6,3479.7,2.87381]
[1718745484882,2.87307,3480.6,3480.0,2.87355]
[1718745485107,2.87307,3480.6,3479.8,3.748481]
[1718745485294,0.861883,3480.6,3479.6,2.87386]
[1718745485507,2.87315,3480.5,3479.9,2.87363]
[1718745485948,2.8724,3481.4,3480.1,2.87343]
[1718745486109,2.87269,3481.1,3480.5,2.87315]
[1718745486311,2.8724,3481.4,3480.5,2.87315]
[1718745486312,2.87257,3481.2,3480.6,2.87304]
[1718745486551,2.87257,3481.2,3480.5,2.87315]
[1718745486741,2.87266,3481.1,3480.2,2.87333]
[1718745486921,1.32894,3481.4,3480.3,2.8733]
[1718745486922,2.87258,3481.2,3480.3,2.8733]
[1718745487263,2.87274,3481.0,3480.4,2.87323]
[1718745487445,2.87274,3481.0,3480.2,0.287333]
[1718745487446,2.87283,3480.9,3480.2,0.287333]
[1718745487608,2.87298,3480.8,3480.1,5.74684]
[1718745487923,2.87238,3481.5,3480.7,2.87292]
[1718745488122,2.87242,3481.4,3480.8,3.47682714]
[1718745488429,2.87275,3481.0,3480.3,2.8733]
[1718745488742,2.87283,3480.9,3480.3,2.8733]
[1718745488915,2.87291,3480.8,3480.2,2.87339]
[1718745489110,2.87274,3481.0,3480.4,2.87321]
[1718745489319,2.87266,3481.1,3480.5,2.87314]
[1718745489728,2.87289,3480.9,3480.2,2.87339]
[1718745489921,2.87274,3481.0,3480.3,2.87328]
[1718745490364,2.87227,3481.6,3480.6,2.87304]
[1718745490662,2.87241,3481.4,3480.8,2.87289]
[1718745490823,7.417,3481.7,3480.3,0.574667]
[1718745490824,0.07181353,3481.3,3480.3,0.574667]
[1718745491030,2.87305,3480.7,3480.0,2.87348]
[1718745491233,2.87291,3480.8,3480.2,2.87339]
[1718745491542,2.87291,3480.8,3480.0,2.87348]
[1718745491745,2.87308,3480.6,3480.1,2.87348]
[1718745491955,2.87315,3480.5,3479.5,4.09331344]
[1718745492254,2.87341,3480.2,3479.6,2.87388]
[1718745492435,2.87348,3480.1,3479.5,2.87393]
[1718745492750,2.87369,3479.9,3479.2,2.87421]
[1718745492934,2.87369,3479.9,3479.3,2.87411]
[1718745493336,2.87357,3480.0,3479.4,2.87404]
[1718745493559,2.87364,3479.9,3479.2,0.287429]
[1718745493927,2.87373,3479.8,3479.2,0.287429]
[1718745494130,7.03,3480.6,3479.4,2.87405]
[1718745494131,2.87349,3480.1,3479.4,2.87405]
[1718745494342,2.87357,3480.0,3479.4,2.87405]
[1718745494649,2.87331,3480.3,3479.2,0.287429]
[1718745494650,2.87346,3480.2,3479.2,0.287429]
[1718745494869,2.87346,3480.2,3479.5,2.8739]
[1718745495055,2.87358,3480.0,3479.4,2.874]
[1718745495350,2.87348,3480.1,3479.5,2.8739]
[1718745495513,2.87348,3480.1,3479.6,0.05747196]
[1718745496939,1.0893518,3480.4,3479.2,3.161629]
[1718745497170,2.87365,3479.9,3479.3,2.87406]
[1718745497313,2.87382,3479.7,3479.0,2.87431]
[1718745497515,2.87382,3479.7,3479.0,0.862343]
[1718745497715,2.87382,3479.7,3478.9,2.87446]
[1718745497963,2.87382,3479.7,3478.7,2.87463]
[1718745497964,2.87398,3479.5,3479.0,2.87434]
[1718745498180,2.87382,3479.7,3479.0,2.87434]
[1718745498674,2.87416,3479.3,3478.7,2.8746]
[1718745499260,2.87398,3479.5,3478.9,2.87447]
[1718745499261,2.87405,3479.5,3478.9,2.87447]
[1718745499465,2.87407,3479.4,3478.9,2.87447]
[1718745499669,2.87415,3479.3,3478.7,0.86594]
[1718745500085,2.87423,3479.2,3478.7,0.86594]
[1718745500243,0.2889,3480.7,3479.2,2.87415]
[1718745500447,7.18,3481.6,3479.2,2.87415]
[1718745500448,2.87258,3481.2,3480.4,2.87316]
[1718745500638,0.36073682,3481.5,3479.9,2.87361]
[1718745500639,0.07182367,3481.1,3479.9,2.87361]
[1718745500843,0.07182367,3481.1,3480.2,2.87338]
[1718745500844,2.87283,3480.9,3480.2,2.87338]
[1718745501484,2.87241,3481.4,3480.3,2.87331]
[1718745501697,2.87265,3481.1,3480.3,2.87331]
[1718745501925,0.07182367,3481.0,3480.3,2.87331]
[1718745502197,2.87185,3482.1,3481.1,2.87261]
[1718745502413,2.87199,3481.9,3481.3,2.87245]
[1718745502566,2.87216,3481.7,3481.1,2.8726]
[1718745504227,2.87216,3481.7,3480.5,2.87314]
[1718745504228,2.87134,3482.7,3482.1,2.87183]
[1718745504522,6.9962,3482.8,3482.3,2.87166]
[1718745504667,6.9962,3483.6,3482.9,2.8711]
[1718745504858,6.9962,3483.6,3482.8,2.87124]
[1718745504859,9.8668,3483.6,3483.0,2.87105]
[1718745505164,9.8668,3483.6,3483.2,2.87089]
[1718745505165,0.98668,3483.5,3483.2,2.87089]
[1718745505360,2.87035,3483.9,3483.1,2.87097]
[1718745505665,0.07176774,3483.8,3482.8,2.87117]
[1718745505876,4.10800338,3484.1,3482.9,2.87109]
[1718745506089,6.97818338,3484.1,3482.3,2.87165]
[1718745506365,1.10800338,3484.1,3483.2,2.87084]
[1718745506706,2.87052,3483.7,3483.2,2.87084]
[1718745506866,2.87052,3483.7,3483.1,2.871]
[1718745507064,2.87052,3483.7,3483.0,2.87108]
[1718745507265,3.444677,3483.6,3482.9,2.87116]
[1718745507976,3.444677,3483.6,3481.8,2.85924953]
[1718745507977,2.87108,3483.0,3482.2,2.87169]
[1718745508191,0.574087,3483.6,3482.7,2.87127]
[1718745508379,2.87064,3483.6,3483.0,2.87106]
[1718745508577,2.87078,3483.4,3482.5,2.87146]
[1718745508774,7.3622,3484.2,3482.4,2.87151]
[1718745508974,2.87101,3483.1,3482.5,2.87141]
[1718745509482,2.87101,3483.1,3482.3,2.87164]
[1718745509483,5.74209,3483.1,3482.4,2.87157]
[1718745509680,2.87071,3483.5,3482.8,2.87118]
[1718745509883,2.87041,3483.9,3482.1,2.87181]
[1718745509884,2.87054,3483.7,3482.5,2.87149]
[1718745510095,0.574095,3483.6,3482.5,2.87149]
[1718745510816,2.87069,3483.5,3482.9,2.87112]
[1718745511117,3.444685,3483.6,3483.0,2.87108]
[1718745511418,2.87069,3483.5,3482.8,2.8712]
[1718745511707,3.5022125,3483.5,3482.9,2.87116]
[1718745511892,0.6315225,3483.5,3482.8,2.87125]
[1718745512204,2.87067,3483.5,3482.8,2.87125]
[1718745512428,2.87067,3483.5,3482.7,2.87133]
[1718745512429,2.87054,3483.7,3482.9,2.87114]
[1718745512572,2.87061,3483.6,3482.8,2.8712]
[1718745512772,2.87067,3483.5,3482.9,2.87116]
[1718745513988,2.8708,3483.4,3482.8,2.87124]
[1718745514382,2.87104,3483.1,3482.1,2.87176]
[1718745514587,2.87104,3483.1,3482.4,2.87158]
[1718745515226,2.87106,3483.1,3482.3,2.87166]
[1718745515604,2.87106,3483.1,3482.3,2.87159]
[1718745515786,2.87106,3483.1,3482.4,2.87155]
[1718745516332,2.87109,3483.0,3482.4,2.87155]
[1718745516563,0.6027974,3483.6,3481.9,2.87194]
[1718745516564,2.87092,3483.2,3481.9,2.87194]
[1718745516826,2.87118,3482.9,3482.1,2.87182]
[1718745517132,2.87086,3483.3,3482.2,0.0478546]
[1718745517286,2.87116,3483.0,3482.2,2.87167]
[1718745517489,2.87117,3482.9,3482.3,0.04790523]
[1718745518333,3.4741046,3482.9,3482.3,0.04790523]
[1718745518626,2.87117,3482.9,3482.3,0.04790523]
[1718745519723,2.87127,3482.8,3482.3,0.04790523]
[1718745520089,2.87127,3482.8,3482.2,0.04790767]
[1718745520593,0.287086,3483.2,3482.2,0.04790767]
[1718745520797,2.87123,3482.9,3482.3,2.87166]
[1718745521409,2.87084,3483.3,3482.5,2.87149]
[1718745521717,2.87059,3483.6,3482.5,2.87149]
[1718745521900,0.07177286,3483.5,3482.5,2.87149]
[1718745522099,2.94245286,3483.5,3482.7,2.87132]
[1718745522298,2.87059,3483.6,3483.0,2.87108]
[1718745522704,2.87086,3483.3,3482.7,2.87132]
[1718745522904,2.87074,3483.5,3482.7,2.87132]
[1718745523104,2.87074,3483.5,3483.0,2.87108]
[1718745523322,2.87074,3483.5,3482.5,2.87143]
[1718745523616,3.157814,3483.5,3482.5,2.87143]
[1718745524337,3.157814,3483.5,3482.7,2.87131]
[1718745524338,2.8709,3483.3,3482.7,2.87131]
[1718745524550,2.87092,3483.2,3482.6,2.8714]
[1718745526044,7.31017303,3483.1,3481.0,1.150241]
[1718745526346,7.31017303,3483.1,3481.7,2.87214]
[1718745526347,2.87126,3482.8,3481.7,2.87214]
[1718745526544,2.87126,3482.8,3482.1,2.87176]
[1718745526906,2.87136,3482.7,3482.1,2.87176]
[1718745527426,2.87142,3482.6,3482.1,2.87176]
[1718745528407,1.07878657,3483.9,3482.6,2.87135]
[1718745528761,0.75,3486.0,3482.2,0.574375]
[1718745528762,2.86911,3485.5,3484.3,2.87001]
[1718745529037,2.8135283,3486.3,3484.3,6.577021]
[1718745529038,2.86886,3485.7,3484.3,6.577021]
[1718745529237,2.86886,3485.8,3484.3,9.447031]
[1718745530005,2.8687,3485.9,3485.1,2.86935]
[1718745530316,2.86896,3485.6,3484.8,2.86955]
[1718745530523,0.07172824,3485.5,3484.8,2.86955]
[1718745530719,0.07172824,3485.5,3484.4,2.86991]
[1718745530720,0.07172824,3485.5,3484.7,2.86961]
[1718745530920,2.94079824,3485.5,3484.7,2.86961]
[1718745531642,2.94079824,3485.5,3484.8,2.86959]
[1718745531806,2.86912,3485.4,3484.8,2.86959]
[1718745532255,2.8691,3485.5,3484.8,2.8696]
[1718745533143,2.86894,3485.6,3484.9,2.86951]
[1718745533364,2.86902,3485.5,3484.9,2.86951]
[1718745533648,2.86911,3485.4,3484.8,2.8696]
[1718745533855,2.86911,3485.4,3484.5,2.86985]
[1718745534147,2.95845389,3485.2,3484.5,2.86985]
[1718745534446,2.95845389,3485.2,3484.4,2.86992]
[1718745534447,2.86944,3485.0,3484.4,2.86992]
[1718745534649,10.18376,3485.1,3484.4,2.86992]
[1718745537077,7.3144,3485.1,3484.0,2.87024]
[1718745537383,2.86961,3484.8,3483.7,2.87049]
[1718745537537,0.07174701,3484.7,3483.7,2.87049]
[1718745537735,0.07174701,3484.7,3483.5,2.87061]
[1718745538087,0.07174701,3484.7,3484.0,2.87022]
[1718745538389,2.86978,3484.6,3483.9,2.87034]
[1718745538731,2.86963,3484.8,3483.7,2.87046]
[1718745538957,2.87002,3484.3,3483.5,2.8706]
[1718745539167,2.87015,3484.2,3483.5,2.8706]
[1718745539571,2.87002,3484.3,3483.5,2.8706]
[1718745539987,2.87002,3484.3,3483.2,2.87086]
[1718745539988,2.94185567,3484.2,3483.2,2.87086]
[1718745540152,2.94185567,3484.2,3483.3,2.87076]
[1718745540476,2.87026,3484.0,3483.3,2.87076]
[1718745540884,2.86995,3484.4,3483.5,2.8706]
[1718745541093,0.07175609,3484.3,3483.5,2.8706]
[1718745541238,2.94177609,3484.3,3483.6,2.87057]
[1718745541444,0.07175609,3484.3,3483.7,2.87051]
[1718745541674,2.87011,3484.2,3483.4,2.87075]
[1718745542029,2.87002,3484.3,3483.5,2.87067]
[1718745542214,0.1185283,3486.3,3483.5,2.87067]
[1718745542215,2.86911,3485.4,3483.6,0.55]
[1718745542349,2.86898,3485.6,3484.7,2.86962]
[1718745542544,2.94075995,3485.5,3484.7,2.86962]
[1718745543322,2.94075995,3485.5,3484.0,2.87019]
[1718745543323,0.07172995,3485.5,3484.0,2.87019]
[1718745543579,2.86903,3485.5,3484.4,2.86992]
[1718745543779,0.07173286,3485.4,3484.5,2.86977]
[1718745543940,10.28183,3485.1,3484.1,3.0]
[1718745544280,7.48413429,3485.1,3484.5,2.86984]
[1718745544579,7.48413429,3485.1,3484.5,2.86977]
[1718745544786,7.48413429,3485.1,3484.2,2.87009]
[1718745544787,2.86952,3484.9,3484.2,2.87009]
[1718745545083,2.87001,3484.4,3483.6,2.87054]
[1718745545288,2.94177267,3484.3,3483.6,2.87054]
[1718745545502,2.86985,3484.5,3483.7,2.87048]
[1718745545790,2.94170328,3484.4,3483.7,2.87048]
[1718745546079,2.94170328,3484.4,3482.6,6.2698]
[1718745546080,2.8701,3484.2,3482.6,6.2698]
[1718745546395,2.94195051,3484.1,3483.1,2.87099]
[1718745546681,2.94195051,3484.1,3483.3,2.87081]
[1718745546682,2.87027,3484.0,3483.3,2.87081]
[1718745546882,0.07176071,3483.9,3482.8,2.87117]
[1718745547096,0.07176071,3483.9,3482.8,3.458287]
[1718745547270,0.07176071,3483.9,3482.7,5.74264]
[1718745547478,0.07176321,3484.0,3483.3,2.87077]
[1718745547781,0.07176321,3484.0,3483.4,2.87075]
[1718745547979,2.94206321,3484.0,3483.2,2.87087]
[1718745548198,2.94206321,3484.0,3482.5,2.87148]
[1718745548199,2.87034,3483.9,3483.0,2.87108]
[1718745548393,2.87087,3483.3,3482.6,2.87133]
[1718745549195,2.87093,3483.2,3482.5,2.87149]
[1718745549993,2.87093,3483.2,3482.3,4.4342345]
[1718745550199,2.87106,3483.1,3482.2,2.87174]
[1718745551261,2.87054,3483.7,3482.9,2.87116]
[1718745551460,0.07177154,3483.6,3483.0,2.87107]
[1718745551689,0.07177154,3483.6,3482.6,2.87138]
[1718745551690,2.87069,3483.5,3482.8,2.87117]
[1718745551876,0.3919754,3483.6,3482.7,2.87125]
[1718745552087,3.3344083,3483.6,3482.9,2.87114]
[1718745552554,2.87068,3483.5,3482.9,2.87114]
[1718745553568,3.2625754,3483.6,3482.9,2.87114]
[1718745553775,2.8706,3483.6,3482.9,2.87114]
[1718745554201,2.8706,3483.6,3483.0,2.87106]
[1718745554386,3.919564,3483.9,3483.2,2.87084]
[1718745554601,0.07176856,3483.8,3483.2,2.87084]
[1718745555324,2.94218856,3483.8,3482.7,2.87128]
[1718745555603,0.07176856,3483.8,3483.2,2.87086]
[1718745555811,1.38632042,3483.8,3483.2,2.87086]
[1718745556162,7.3331,3484.0,3483.5,2.87066]
[1718745556406,7.3331,3484.0,3483.4,2.87074]
[1718745556640,2.87036,3483.9,3483.2,2.87085]
[1718745556941,2.87036,3483.9,3483.3,2.87083]
[1718745557067,7.3331,3484.0,3483.6,2.87051]
[1718745557274,2.86993,3484.4,3483.7,2.87045]
[1718745557473,0.32604435,3484.3,3483.7,2.87045]
[1718745557711,0.32604435,3484.3,3483.4,2.87075]
[1718745558028,0.32604435,3484.3,3473.1,0.01375]
[1718745558029,2.695,3483.7,3483.0,2.87103]
[1718745558362,2.87019,3484.1,3483.3,2.87077]
[1718745558483,6.8644,3484.2,3483.2,2.87091]
[1718745558670,2.87042,3483.8,3482.9,2.87116]
[1718745558873,2.87052,3483.7,3482.9,2.87116]
[1718745559184,0.287052,3483.7,3483.0,2.87107]
[1718745559377,2.87051,3483.7,3483.0,2.87107]
[1718745559877,2.87061,3483.6,3482.8,2.87124]
[1718745560081,2.87026,3484.0,3482.8,2.87124]
[1718745560279,1.31161,3483.9,3482.8,2.87124]
[1718745560781,4.18201,3483.9,3482.8,2.87124]
[1718745560988,2.87043,3483.8,3482.8,2.87124]
[1718745561184,2.87053,3483.7,3483.0,2.87107]
[1718745561389,2.87051,3483.7,3483.1,2.871]
[1718745561702,2.8706,3483.6,3482.9,2.87115]
[1718745562068,2.87034,3483.9,3482.9,2.87116]
[1718745562297,2.87049,3483.8,3482.7,3.158388]
[1718745562484,2.87049,3483.8,3483.0,2.87107]
[1718745562686,2.87049,3483.8,3482.9,2.87115]
[1718745562687,2.8706,3483.6,3482.9,2.87115]
[1718745563168,6.8644,3484.2,3482.8,0.3158388]
[1718745563169,2.87076,3483.4,3482.8,0.3158388]
[1718745563368,2.87076,3483.4,3482.6,2.87139]
[1718745563615,2.87076,3483.4,3482.7,3.4213]
[1718745563910,2.87069,3483.5,3482.7,3.4213]
[1718745564311,2.8706,3483.6,3482.9,2.87115]
[1718745564495,2.87029,3484.0,3483.0,2.87107]
[1718745564694,2.87029,3484.0,3483.1,2.87099]
[1718745564695,2.87026,3484.0,3483.1,2.87099]
[1718745565013,2.87025,3484.1,3483.4,2.87068]
[1718745565209,2.87027,3484.0,3483.2,2.87091]
[1718745565380,2.87034,3483.9,3483.2,2.87091]
[1718745565709,2.87035,3483.9,3483.2,2.87091]
[1718745566102,2.87028,3484.0,3483.2,2.87091]